fUST/lending_fUST_20240528
["ID","MTS","AMOUNT","RATE_DAILY","PERIOD"]
[328115836,1716882643983,-500.0,0.00019178,2]
[328115837,1716882643992,-4985.55846983,0.00019178,2]
[328115838,1716882644001,-4985.55846983,0.00019178,2]
[328115839,1716882644010,-500.0,0.00019178,2]
[328115840,1716882644020,-4985.55846983,0.00019178,2]
[328115841,1716882644029,-500.0,0.00019178,2]
[328115842,1716882644039,-4985.55846983,0.00019178,2]
[328115843,1716882644048,-500.0,0.00019178,2]
[328115844,1716882644057,-4985.55846983,0.00019178,2]
[328115845,1716882644067,-4985.55846983,0.00019178,2]
[328115846,1716882644076,-4985.55846983,0.00019178,2]
[328115847,1716882644084,-500.0,0.00019178,2]
[328115848,1716882644094,-4985.55846983,0.00019178,2]
[328115849,1716882644103,-4985.55846983,0.00019178,2]
[328115850,1716882644116,-4985.55846983,0.00019178,2]
[328115851,1716882644125,-4985.55846983,0.00019178,2]
[328115852,1716882644134,-4985.55846983,0.00019178,2]
[328115853,1716882644144,-4985.55846983,0.00019178,2]
[328115854,1716882644154,-4985.55846983,0.00019178,2]
[328115855,1716882644163,-4985.55846983,0.00019178,2]
[328115856,1716882644172,-5093.57890335,0.00019178,2]
[328115857,1716882644181,-5093.57890335,0.00019178,2]
[328115858,1716882644192,-5093.57890335,0.00019178,2]
[328115859,1716882644201,-5093.57890335,0.00019178,2]
[328115860,1716882644210,-5093.57890335,0.00019178,2]
[328115861,1716882644219,-5093.57890335,0.00019178,2]
[328115862,1716882644229,-5093.57890335,0.00019178,2]
[328115863,1716882644238,-5093.57890335,0.00019178,2]
[328115864,1716882644247,-5093.57890335,0.00019178,2]
[328115865,1716882644256,-5093.57890335,0.00019178,2]
[328115866,1716882644265,-5093.57890335,0.00019178,2]
[328115867,1716882644274,-5093.57890333,0.00019178,2]
[328115868,1716882644284,-357.79666212,0.00019178,2]
[328115869,1716882644293,-500.0,0.00019178,2]
[328115870,1716882644302,-153.4795369,0.00019178,2]
[328115871,1716882644311,-15461.93771892,0.00019178,2]
[328115872,1716882644320,-319.44103442,0.00019178,2]
[328115873,1716882644329,-205.55963884,0.00019178,2]
[328115874,1716882644338,-500.0,0.00019178,2]
[328115875,1716882644347,-500.0,0.00019178,2]
[328115876,1716882644356,-500.0,0.00019178,2]
[328115877,1716882644365,-500.0,0.00019178,2]
[328115878,1716882644374,-500.0,0.00019178,2]
[328115879,1716882644383,-247.89786419,0.00019178,2]
[328115880,1716882644392,-500.0,0.00019178,2]
[328115881,1716882644401,-500.0,0.00019178,2]
[328115882,1716882644410,-239.48020651,0.00019178,2]
[328115883,1716882644419,-500.0,0.00019178,2]
[328115884,1716882644428,-500.0,0.00019178,2]
[328115885,1716882644437,-500.0,0.00019178,2]
[328115886,1716882644446,-500.0,0.00019178,2]
[328115887,1716882644456,-500.0,0.00019178,2]
[328115888,1716882644465,-463.57219912,0.00019178,2]
[328115889,1716882644477,-650.0,0.00019178,2]
[328115890,1716882644486,-500.0,0.00019178,2]
[328115891,1716882644495,-515.0,0.00019178,2]
[328115892,1716882644505,-500.0,0.00019178,2]
[328115893,1716882644515,-200.0,0.00019178,2]
[328115894,1716882644524,-246.88764913,0.00019178,2]
[328115895,1716882644535,-296.99245836,0.00019178,2]
[328115896,1716882644545,-502.35681189,0.00019178,2]
[328115897,1716882644555,-500.0,0.00019178,2]
[328115898,1716882644564,-183.41049268,0.00019178,2]
[328115899,1716882644574,-426.66470612,0.00019178,2]
[328115900,1716882644583,-414.78585835,0.00019178,2]
[328115901,1716882644593,-500.0,0.00019178,2]
[328115902,1716882644603,-500.0,0.00019178,2]
[328115903,1716882644612,-500.0,0.00019178,2]
[328115904,1716882644621,-500.0,0.00019178,2]
[328115905,1716882644631,-500.0,0.00019178,2]
[328115906,1716882644640,-500.0,0.00019178,2]
[328115907,1716882644651,-500.0,0.00019178,2]
[328115908,1716882644661,-500.0,0.00019178,2]
[328115909,1716882644670,-500.0,0.00019178,2]
[328115910,1716882644680,-500.0,0.00019178,2]
[328115911,1716882644690,-500.0,0.00019178,2]
[328115912,1716882644700,-500.0,0.00019178,2]
[328115913,1716882644710,-500.0,0.00019178,2]
[328115914,1716882644720,-500.0,0.00019178,2]
[328115915,1716882644731,-500.0,0.00019178,2]
[328115916,1716882644740,-500.0,0.00019178,2]
[328115917,1716882644749,-500.0,0.00019178,2]
[328115918,1716882644758,-500.0,0.00019178,2]
[328115919,1716882644767,-388.25380901,0.00019178,2]
[328115920,1716882644777,-500.0,0.00019178,2]
[328115921,1716882644786,-500.0,0.00019178,2]
[328115922,1716882644796,-500.0,0.00019178,2]
[328115923,1716882644806,-500.0,0.00019178,2]
[328115924,1716882644815,-500.0,0.00019178,2]
[328115925,1716882644825,-550.0,0.00019178,2]
[328115926,1716882644835,-151.0,0.00019178,2]
[328115927,1716882644846,-205.896744,0.00019178,2]
[328115928,1716882644855,-151.0,0.00019178,2]
[328115929,1716882644864,-153.218855,0.00019178,2]
[328115930,1716882644874,-151.0,0.00019178,2]
[328115931,1716882644883,-151.0,0.00019178,2]
[328115932,1716882644893,-151.0,0.00019178,2]
[328115933,1716882644902,-151.0,0.00019178,2]
[328115934,1716882644912,-151.0,0.00019178,2]
[328115935,1716882644922,-3000.0,0.00019178,2]
[328115936,1716882644932,-3000.0,0.00019178,2]
[328115937,1716882644942,-3000.0,0.00019178,2]
[328115938,1716882644952,-3000.0,0.00019178,2]
[328115939,1716882644962,-2399.48679077,0.00019178,2]
[328115940,1716882644972,-151.0,0.00019178,2]
[328115941,1716882644982,-151.0,0.00019178,2]
[328115942,1716882644992,-151.850045,0.00019178,2]
[328115943,1716882645002,-500.0,0.00019178,2]
[328115944,1716882645012,-500.0,0.00019178,2]
[328115945,1716882645021,-304.16060063,0.00019178,2]
[328115946,1716882645031,-151.0,0.00019178,2]
[328115947,1716882645042,-151.0,0.00019178,2]
[328115948,1716882645052,-151.0,0.00019178,2]
[328115949,1716882645062,-151.0,0.00019178,2]
[328115950,1716882645072,-151.0,0.00019178,2]
[328115951,1716882645082,-151.0,0.00019178,2]
[328115952,1716882645091,-151.0,0.00019178,2]
[328115953,1716882645100,-151.0,0.00019178,2]
[328115954,1716882645110,-151.0,0.00019178,2]
[328115955,1716882645123,-151.0,0.00019178,2]
[328115956,1716882645132,-151.0,0.00019178,2]
[328115957,1716882645141,-151.0,0.00019178,2]
[328115958,1716882645151,-151.0,0.00019178,2]
[328115959,1716882645160,-271.415672,0.00019178,2]
[328115960,1716882645169,-151.0,0.00019178,2]
[328115961,1716882645179,-151.0,0.00019178,2]
[328115962,1716882645188,-151.0,0.00019178,2]
[328115963,1716882645200,-151.0,0.00019178,2]
[328115964,1716882645209,-151.0,0.00019178,2]
[328115965,1716882645219,-151.0,0.00019178,2]
[328115966,1716882645230,-151.0,0.00019178,2]
[328115967,1716882645240,-151.0,0.00019178,2]
[328115968,1716882645249,-286.037848,0.00019178,2]
[328115969,1716882645259,-151.0,0.00019178,2]
[328115970,1716882645269,-151.0,0.00019178,2]
[328115971,1716882645279,-151.0,0.00019178,2]
[328115972,1716882645289,-151.0,0.00019178,2]
[328115973,1716882645299,-151.0,0.00019178,2]
[328115974,1716882645308,-151.0,0.00019178,2]
[328115975,1716882645318,-260.267414,0.00019178,2]
[328115976,1716882645328,-151.0,0.00019178,2]
[328115977,1716882645338,-151.0,0.00019178,2]
[328115978,1716882645348,-151.0,0.00019178,2]
[328115979,1716882645358,-151.0,0.00019178,2]
[328115980,1716882645371,-151.0,0.00019178,2]
[328115981,1716882645381,-151.0,0.00019178,2]
[328115982,1716882645391,-151.0,0.00019178,2]
[328115983,1716882645401,-151.0,0.00019178,2]
[328115984,1716882645410,-151.0,0.00019178,2]
[328115985,1716882645421,-151.0,0.00019178,2]
[328115986,1716882645430,-278.913018,0.00019178,2]
[328115987,1716882645440,-151.0,0.00019178,2]
[328115988,1716882645450,-154.585441,0.00019178,2]
[328115989,1716882645460,-500.0,0.00019178,2]
[328115990,1716882645470,-255.72557796,0.00019178,2]
[328115991,1716882645481,-152.51371,0.00019178,2]
[328115992,1716882645490,-151.0,0.00019178,2]
[328115993,1716882645499,-151.0,0.00019178,2]
[328115994,1716882645509,-151.0,0.00019178,2]
[328115995,1716882645518,-250.662423,0.00019178,2]
[328115996,1716882645528,-151.0,0.00019178,2]
[328115997,1716882645538,-177.515457,0.00019178,2]
[328115998,1716882645547,-380.032066,0.00019178,2]
[328115999,1716882645556,-380.032066,0.00019178,2]
[328116000,1716882645566,-380.032066,0.00019178,2]
[328116001,1716882645574,-380.032066,0.00019178,2]
[328116002,1716882645584,-380.032066,0.00019178,2]
[328116003,1716882645593,-380.032066,0.00019178,2]
[328116005,1716882645603,-380.032066,0.00019178,2]
[328116006,1716882645612,-380.032066,0.00019178,2]
[328116007,1716882645622,-380.032066,0.00019178,2]
[328116008,1716882645633,-380.032066,0.00019178,2]
[328116009,1716882645642,-380.032066,0.00019178,2]
[328116010,1716882645651,-380.032066,0.00019178,2]
[328116011,1716882645662,-380.032066,0.00019178,2]
[328116012,1716882645672,-380.032066,0.00019178,2]
[328116013,1716882645682,-380.032066,0.00019178,2]
[328116014,1716882645692,-380.032066,0.00019178,2]
[328116015,1716882645702,-380.032066,0.00019178,2]
[328116016,1716882645712,-380.032066,0.00019178,2]
[328116017,1716882645722,-380.032066,0.00019178,2]
[328116018,1716882645731,-380.032058,0.00019178,2]
[328116019,1716882645741,-151.0,0.00019178,2]
[328116020,1716882645751,-151.0,0.00019178,2]
[328116021,1716882645761,-151.0,0.00019178,2]
[328116031,1716882645952,-151.0,0.00019178,2]
[328116032,1716882645962,-151.0,0.00019178,2]
[328116033,1716882645971,-151.0,0.00019178,2]
[328116034,1716882645981,-151.0,0.00019178,2]
[328116035,1716882645990,-151.0,0.00019178,2]
[328116036,1716882645999,-151.0,0.00019178,2]
[328116037,1716882646009,-151.0,0.00019178,2]
[328116039,1716882646018,-151.0,0.00019178,2]
[328116040,1716882646028,-151.0,0.00019178,2]
[328116041,1716882646037,-151.0,0.00019178,2]
[328116042,1716882646047,-247.19012,0.00019178,2]
[328116043,1716882646056,-151.0,0.00019178,2]
[328116044,1716882646066,-151.0,0.00019178,2]
[328116045,1716882646075,-151.0,0.00019178,2]
[328116046,1716882646085,-237.558104,0.00019178,2]
[328116047,1716882646094,-151.0,0.00019178,2]
[328116048,1716882646103,-151.0,0.00019178,2]
[328116049,1716882646118,-151.0,0.00019178,2]
[328116050,1716882646127,-151.0,0.00019178,2]
[328116052,1716882646136,-151.0,0.00019178,2]
[328116053,1716882646145,-151.0,0.00019178,2]
[328116055,1716882646156,-151.0,0.00019178,2]
[328116056,1716882646165,-151.0,0.00019178,2]
[328116057,1716882646180,-151.0,0.00019178,2]
[328116058,1716882646194,-151.0,0.00019178,2]
[328116059,1716882646204,-238.949309,0.00019178,2]
[328116060,1716882646213,-863.777194,0.00019178,2]
[328116061,1716882646222,-863.777194,0.00019178,2]
[328116062,1716882646233,-863.777194,0.00019178,2]
[328116063,1716882646242,-863.777194,0.00019178,2]
[328116064,1716882646251,-863.777194,0.00019178,2]
[328116065,1716882646259,-863.777194,0.00019178,2]
[328116066,1716882646267,-863.777194,0.00019178,2]
[328116067,1716882646276,-863.777194,0.00019178,2]
[328116068,1716882646286,-863.777194,0.00019178,2]
[328116069,1716882646296,-863.777194,0.00019178,2]
[328116070,1716882646306,-863.777194,0.00019178,2]
[328116071,1716882646315,-863.777194,0.00019178,2]
[328116072,1716882646324,-863.777194,0.00019178,2]
[328116073,1716882646333,-863.777194,0.00019178,2]
[328116074,1716882646342,-863.777194,0.00019178,2]
[328116075,1716882646352,-863.777194,0.00019178,2]
[328116076,1716882646360,-863.777194,0.00019178,2]
[328116077,1716882646369,-863.777194,0.00019178,2]
[328116078,1716882646379,-863.777194,0.00019178,2]
[328116079,1716882646389,-863.777189,0.00019178,2]
[328116080,1716882646398,-151.220539,0.00019178,2]
[328116081,1716882646407,-151.0,0.00019178,2]
[328116082,1716882646417,-151.0,0.00019178,2]
[328116083,1716882646426,-151.0,0.00019178,2]
[328116084,1716882646436,-151.0,0.00019178,2]
[328116085,1716882646445,-151.0,0.00019178,2]
[328116086,1716882646455,-165.600988,0.00019178,2]
[328116087,1716882646464,-165.600988,0.00019178,2]
[328116088,1716882646474,-165.600988,0.00019178,2]
[328116089,1716882646484,-165.600988,0.00019178,2]
[328116090,1716882646493,-165.600988,0.00019178,2]
[328116091,1716882646503,-165.600988,0.00019178,2]
[328116092,1716882646512,-165.600988,0.00019178,2]
[328116093,1716882646521,-165.600988,0.00019178,2]
[328116094,1716882646531,-165.600988,0.00019178,2]
[328116095,1716882646540,-165.600988,0.00019178,2]
[328116096,1716882646549,-165.600988,0.00019178,2]
[328116097,1716882646560,-165.600988,0.00019178,2]
[328116098,1716882646569,-165.600988,0.00019178,2]
[328116099,1716882646579,-165.600988,0.00019178,2]
[328116100,1716882646588,-165.600988,0.00019178,2]
[328116101,1716882646598,-165.600988,0.00019178,2]
[328116102,1716882646607,-165.600988,0.00019178,2]
[328116103,1716882646616,-165.600988,0.00019178,2]
[328116104,1716882646625,-165.600988,0.00019178,2]
[328116105,1716882646635,-165.600978,0.00019178,2]
[328116106,1716882646644,-375.825834,0.00019178,2]
[328116107,1716882646653,-375.825834,0.00019178,2]
[328116108,1716882646663,-375.825834,0.00019178,2]
[328116109,1716882646672,-375.825834,0.00019178,2]
[328116110,1716882646681,-375.825834,0.00019178,2]
[328116111,1716882646694,-375.825834,0.00019178,2]
[328116112,1716882646704,-375.825834,0.00019178,2]
[328116113,1716882646713,-375.825834,0.00019178,2]
[328116114,1716882646722,-375.825834,0.00019178,2]
[328116115,1716882646731,-375.825834,0.00019178,2]
[328116116,1716882646741,-347.44223369,0.00019178,2]
[328116117,1716882646759,-28.38360031,0.00019178,2]
[328116118,1716882646768,-375.825834,0.00019178,2]
[328116119,1716882646777,-375.825834,0.00019178,2]
[328116120,1716882646787,-329.72981504,0.00019178,2]
[328116121,1716882647077,-46.09601896,0.00019178,2]
[328116122,1716882647086,-375.825834,0.00019178,2]
[328116123,1716882647095,-375.825834,0.00019178,2]
[328116124,1716882647105,-375.825834,0.00019178,2]
[328116125,1716882647118,-375.825834,0.00019178,2]
[328116126,1716882647127,-375.825834,0.00019178,2]
[328116127,1716882647136,-375.825831,0.00019178,2]
[328116128,1716882647146,-151.0,0.00019178,2]
[328116129,1716882647155,-151.0,0.00019178,2]
[328116130,1716882647164,-155.32579,0.00019178,2]
[328116131,1716882647174,-179.974494,0.00019178,2]
[328116132,1716882647183,-182.897793,0.00019178,2]
[328116133,1716882647194,-182.897793,0.00019178,2]
[328116134,1716882647204,-182.897793,0.00019178,2]
[328116135,1716882647214,-182.897793,0.00019178,2]
[328116136,1716882647222,-182.897793,0.00019178,2]
[328116137,1716882647231,-182.897793,0.00019178,2]
[328116138,1716882647241,-182.897793,0.00019178,2]
[328116139,1716882647250,-182.897793,0.00019178,2]
[328116140,1716882647261,-182.897793,0.00019178,2]
[328116141,1716882647271,-182.897793,0.00019178,2]
[328116142,1716882647281,-182.897793,0.00019178,2]
[328116143,1716882647292,-182.897793,0.00019178,2]
[328116144,1716882647301,-182.897793,0.00019178,2]
[328116145,1716882647311,-182.897793,0.00019178,2]
[328116146,1716882647320,-182.897793,0.00019178,2]
[328116147,1716882647330,-182.897793,0.00019178,2]
[328116148,1716882647339,-182.897793,0.00019178,2]
[328116149,1716882647349,-182.89779,0.00019178,2]
[328116150,1716882647359,-177.737218,0.00019178,2]
[328116151,1716882647368,-166.711038,0.00019178,2]
[328116152,1716882647378,-178.408819,0.00019178,2]
[328116153,1716882647387,-438.3154699,0.00019178,4]
[328116154,1716882647397,-878.603894,0.00019178,2]
[328116155,1716882647406,-878.603894,0.00019178,2]
[328116156,1716882647415,-878.603894,0.00019178,2]
[328116157,1716882647424,-878.603894,0.00019178,2]
[328116158,1716882647434,-878.603894,0.00019178,2]
[328116159,1716882647443,-878.603894,0.00019178,2]
[328116160,1716882647452,-878.603894,0.00019178,2]
[328116161,1716882647462,-878.603894,0.00019178,2]
[328116162,1716882647471,-878.603894,0.00019178,2]
[328116163,1716882647482,-878.603894,0.00019178,2]
[328116164,1716882647491,-878.603894,0.00019178,2]
[328116165,1716882647503,-878.603894,0.00019178,2]
[328116166,1716882647512,-878.603894,0.00019178,2]
[328116167,1716882647522,-878.603894,0.00019178,2]
[328116168,1716882647531,-878.603894,0.00019178,2]
[328116169,1716882647540,-878.603894,0.00019178,2]
[328116170,1716882647550,-878.603894,0.00019178,2]
[328116171,1716882647559,-878.603894,0.00019178,2]
[328116172,1716882647568,-878.603894,0.00019178,2]
[328116173,1716882647578,-878.603901,0.00019178,2]
[328116174,1716882647587,-535.800229,0.00019178,2]
[328116175,1716882647596,-306.07088572,0.00019178,2]
[328116176,1716882649477,232.02270779,9.9e-05,2]
[328116177,1716882649497,41.35065452,9.9e-05,2]
[328116178,1716882657507,137.13881383,9.9e-05,2]
[328116179,1716882657527,136.23454848,9.9e-05,2]
[328116180,1716882657721,266.61015013,0.00019177,7]
[328116183,1716882706878,758.49487541,9.999e-05,2]
[328116184,1716883503794,150.5,0.00026839,35]
[328116185,1716883504519,150.5,0.00026829,35]
[328116186,1716883504808,150.5,0.00026819,35]
[328116187,1716883553123,-787.52696336,0.0001761,2]
[328116188,1716883633200,150.5,0.00026839,35]
[328116189,1716883633478,150.5,0.00026829,35]
[328116190,1716883633971,261.57,0.00026819,35]
[328116191,1716883639102,-9792.38029455,0.00016846,2]
[328116192,1716883752100,-13628.0985137,0.00016846,2]
[328116238,1716883833072,-29.50898675,0.00016846,2]
[328116239,1716883833082,-647.72101325,0.0001761,2]
[328116240,1716883833092,-462.228,0.0001761,2]
[328116241,1716883833118,-325.14397417,0.0001761,2]
[328116242,1716883833182,-539.24230124,0.0001761,2]
[328116265,1716883838304,-280.86267126,0.0001761,2]
[328116266,1716883838315,-6766.3,0.0001761,2]
[328116267,1716883838369,-712.87248416,0.0001761,2]
[328116268,1716883838378,-2394.433897,0.00017611,2]
[328116269,1716883838388,-4911.88845568,0.00017806,2]
[328116270,1716883838403,-1000.44654106,0.00017806,2]
[328116271,1716883838415,-7151.54270081,0.00017806,2]
[328116272,1716883838426,-3739.85950704,0.00017806,2]
[328116293,1716883841405,-8096.26279541,0.00017806,2]
[328116294,1716883841415,-4.63350694,0.00018798,2]
[328116346,1716883857843,266.61015013,0.00019895,7]
[328116350,1716883894340,10000.0,0.00019896,7]
[328116353,1716883956754,273.37336231,9.9e-05,2]
[328116354,1716883975866,1340.53639266,9.999e-05,2]
[328116355,1716884004095,395.82778659,9.999e-05,2]
[328116356,1716884014171,12523.07664633,0.00019797,7]
[328116357,1716884134130,6261.53832317,0.00019178,7]
[328116358,1716884199309,-2500.0,0.0002842,120]
[328116359,1716884254031,3130.76916158,0.00019178,7]
[328116360,1716884374324,1565.3845808,0.00019178,7]
[328116361,1716884493963,782.6922904,0.00019178,7]
[328116364,1716884614399,391.3461452,0.00019178,7]
[328116366,1716884733967,195.6730726,0.00019078,7]
[328116367,1716884746143,-1396.9991847,0.00017127,2]
[328116368,1716884746163,-1127.69450324,0.00017134,2]
[328116369,1716884818110,-163.96667753,0.00017135,2]
[328116370,1716884818130,-109.41231678,0.00017223,2]
[328116371,1716884844112,-10697.37768208,0.00017222,2]
[328116372,1716884854175,195.67307259,0.00019078,7]
[328116373,1716884954098,-1222.37428663,0.00017121,2]
[328116374,1716884954118,-163.96667751,0.00017122,2]
[328116375,1716884954136,-8592.3089773,0.00017218,2]
[328116400,1716885032611,-0.9763928,0.00017215,2]
[328116421,1716885039350,-57706.19321174,0.00017215,2]
[328116422,1716885039360,-42019.71697614,0.00017216,2]
[328116423,1716885039370,-1432.90938603,0.00017223,2]
[328116424,1716885039380,-155.24053942,0.00017224,2]
[328116425,1716885039390,-7471.8665721,0.00017235,2]
[328116426,1716885039400,-791.3,0.00017684,2]
[328116427,1716885039411,-164.5,0.00017829,2]
[328116428,1716885039421,-10466.10637903,0.00017898,2]
[328116429,1716885039432,-896.7707273,0.00018,2]
[328116430,1716885039442,-163.96667751,0.000181,2]
[328116431,1716885039452,-791.3,0.00018408,2]
[328116432,1716885039462,-164.5,0.00018607,2]
[328116433,1716885039472,-1639.17168802,0.000189,2]
[328116434,1716885039482,-309.67212177,0.00019,2]
[328116435,1716885039493,-392.93445507,0.00019,2]
[328116436,1716885039503,-162.7360072,0.00019,2]
[328116437,1716885039513,-620.02466678,0.00019063,2]
[328116438,1716885039524,-163.96667751,0.00019078,2]
[328116439,1716885039534,-2000.0,0.00019078,2]
[328116440,1716885039544,-3190.25860789,0.00019078,2]
[328116441,1716885039557,-406.87133934,0.00019078,2]
[328116457,1716885042089,-6016.00571347,0.00019078,2]
[328116488,1716885080068,273.37336231,9.999e-05,2]
[328116489,1716885080092,98.37582654,9.999e-05,2]
[328116490,1716885100947,521.97323765,9.999e-05,2]
[328116491,1716885143755,154.92253873,9.999e-05,2]
[328116492,1716885160450,273.37336231,9.9e-05,2]
[328116573,1716886087469,244.62354279,9.9e-05,2]
[328116575,1716886168108,-380.93220423,0.00016892,2]
[328116622,1716886233060,-1069.57750081,0.00016792,2]
[328116624,1716886233070,-10521.89740744,0.00016889,2]
[328116626,1716886233080,-42019.71697614,0.00016889,2]
[328116628,1716886233089,-1870.76625632,0.0001689,2]
[328116630,1716886233099,-57707.16960454,0.0001689,2]
[328116632,1716886233109,-3598.4483554,0.00016898,2]
[328116633,1716886233118,-896.7707273,0.00018,2]
[328116635,1716886233128,-4220.98547004,0.00018852,2]
[328116637,1716886233138,-1199.70985301,0.000189,2]
[328116638,1716886233148,-392.93445507,0.00019,2]
[328116640,1716886233157,-162.7360072,0.00019,2]
[328116642,1716886233166,-606.3329377,0.0001907,2]
[328116644,1716886233176,-154.95351395,0.00019072,2]
[328116646,1716886233185,-191.48432977,0.00019072,2]
[328116647,1716886233194,-195.27721498,0.00019072,2]
[328116649,1716886233204,-156.81504953,0.00019072,2]
[328116651,1716886233220,-159.71495869,0.00019072,2]
[328116653,1716886233230,-2605.58684806,0.00019073,2]
[328116655,1716886233240,-2727.93604518,0.00019073,2]
[328116657,1716886233252,-2026.88925845,0.00019073,2]
[328116681,1716886237886,-799.80656867,0.000189,2]
[328116683,1716886237896,-89.55348872,0.00019073,2]
[328116685,1716886237905,-231.58546758,0.00019075,2]
[328116687,1716886237915,-3149.07777503,0.00019075,2]
[328116690,1716886237934,-553.7338365,0.00019075,2]
[328116843,1716886244745,-7364.5193193,0.00019075,2]
[328116844,1716886244756,-1090.33429731,0.00019076,2]
[328116845,1716886244766,-13277.94638338,0.00019078,2]
[328116856,1716886246097,-75610.05361662,0.00019078,2]
[328116857,1716886246106,-2000.0,0.00019078,2]
[328116858,1716886246115,-509.346,0.00019175,2]
[328116859,1716886246125,-216.454,0.00019175,2]
[328116860,1716886246134,-152.722,0.00019175,2]
[328116861,1716886246143,-811.23498524,0.00019176,2]
[328116862,1716886246153,-236.75786509,0.00019177,2]
[328116863,1716886246162,-500.0,0.00019178,2]
[328116864,1716886246171,-597.89741244,0.00019178,2]
[328116865,1716886246180,-500.0,0.00019178,2]
[328116866,1716886246189,-500.0,0.00019178,2]
[328116867,1716886246198,-181.71337177,0.00019178,2]
[328116868,1716886246207,-500.0,0.00019178,2]
[328116869,1716886246221,-418.74215096,0.00019178,2]
[328116870,1716886246230,-323.88239056,0.00019178,2]
[328116871,1716886246240,-500.0,0.00019178,2]
[328116872,1716886246250,-500.0,0.00019178,2]
[328116873,1716886246260,-500.0,0.00019178,2]
[328116874,1716886246269,-500.0,0.00019178,2]
[328116875,1716886246278,-500.0,0.00019178,2]
[328116876,1716886246287,-500.0,0.00019178,2]
[328116877,1716886246298,-500.0,0.00019178,2]
[328116878,1716886246308,-500.0,0.00019178,2]
[328116879,1716886246316,-500.0,0.00019178,2]
[328116880,1716886246325,-500.0,0.00019178,2]
[328116881,1716886246334,-500.0,0.00019178,2]
[328116882,1716886246344,-293.02773468,0.00019178,2]
[328116883,1716886246354,-500.0,0.00019178,2]
[328116884,1716886246363,-500.0,0.00019178,2]
[328116885,1716886246372,-500.0,0.00019178,2]
[328116886,1716886246381,-500.0,0.00019178,2]
[328116887,1716886246390,-500.0,0.00019178,2]
[328116888,1716886246400,-500.0,0.00019178,2]
[328116889,1716886246409,-570.1792124,0.00019178,2]
[328116890,1716886246418,-500.0,0.00019178,2]
[328116891,1716886246427,-500.0,0.00019178,2]
[328116892,1716886246437,-500.0,0.00019178,2]
[328116893,1716886246446,-500.0,0.00019178,2]
[328116894,1716886246455,-500.0,0.00019178,2]
[328116895,1716886246465,-500.0,0.00019178,2]
[328116896,1716886246474,-369.12106925,0.00019178,2]
[328116897,1716886246483,-500.0,0.00019178,2]
[328116898,1716886246492,-500.0,0.00019178,2]
[328116899,1716886246503,-500.0,0.00019178,2]
[328116900,1716886246512,-500.0,0.00019178,2]
[328116901,1716886246521,-500.0,0.00019178,2]
[328116902,1716886246530,-500.0,0.00019178,2]
[328116903,1716886246539,-290.35885819,0.00019178,2]
[328116904,1716886246548,-500.0,0.00019178,2]
[328116905,1716886246557,-500.0,0.00019178,2]
[328116906,1716886246566,-500.0,0.00019178,2]
[328116907,1716886246576,-500.0,0.00019178,2]
[328116908,1716886246585,-500.0,0.00019178,2]
[328116909,1716886246594,-500.0,0.00019178,2]
[328116910,1716886246603,-500.0,0.00019178,2]
[328116911,1716886246612,-500.0,0.00019178,2]
[328116912,1716886246624,-500.0,0.00019178,2]
[328116913,1716886246633,-500.0,0.00019178,2]
[328116914,1716886246642,-500.0,0.00019178,2]
[328116915,1716886246652,-500.0,0.00019178,2]
[328116916,1716886246661,-500.0,0.00019178,2]
[328116917,1716886246670,-500.0,0.00019178,2]
[328116918,1716886246679,-500.0,0.00019178,2]